Cogmind - Beta 11.1 @@@ ROGUE MODE // 2022.05.30 @ 17:15:54 Player: youngster Result: Destroyed by D-53 Grenadier with Mini Grenade Launcher Performance ------------- Evolutions (0) 0 Regions Visited (2) 400 Robots Destroyed (32) 160 Value Destroyed (696) 696 Prototype IDs (2) 40 Alien Tech Used (0) 0 Bonus (8) 8 TOTAL SCORE: 1304 Bonus ------- High Alert Combat Kills 8 Cogmind --------- Core Integrity 0/250 Matter 264/300 Energy 20/250 System Corruption 0% Temperature Hot (286) Movement Treading (320) Ox2 Location -10/Mines Parts ------- > --- POWER (1) -------- Ion Engine > --- PROPULSION (2) --- Light Treads Light Treads > --- UTILITY (2) ------ Huge Storage Unit Targeting Computer > --- WEAPON (2) ------- Light EM Pulse Cannon Assault Rifle > --- INVENTORY (25) --- Light Nuclear Core Light Treads Wheel Wheel Small Matter Pod (50) Seismic Detector Transport Network Coupler Utility Shielding Utility Shielding Utility Shielding Light Assault Rifle Light Assault Rifle Mini Grenade Launcher Mini Grenade Launcher Datajack Hammer Peak State ------------ > --- POWER ------------ Ion Engine > --- PROPULSION ------- Light Treads Wheel > --- UTILITY ---------- Huge Storage Unit Targeting Computer > --- WEAPON ----------- Beam Rifle Light EM Pulse Cannon > --- INVENTORY -------- Light Nuclear Core Light Treads Light Treads Light Treads Wheel Small Matter Pod Seismic Detector Transport Network Coupler Utility Shielding Utility Shielding Utility Shielding Assault Rifle Light Assault Rifle Light Assault Rifle Mini Grenade Launcher Mini Grenade Launcher Datajack Hammer [Rating: 11] Favorites ----------- Power Ion Engine Engine Ion Engine Propulsion Light Treads Treads Light Treads Wheel Wheel Utility Small Storage Unit Storage Small Storage Unit Processor Targeting Computer Weapon Assault Rifle Energy Gun Beam Rifle Energy Cannon Light EM Pulse Cannon Ballistic Gun Assault Rifle Launcher Mini Grenade Launcher Build | -11 -10 -10 ------- Run | Scr Mat Min Slots Evolved . | . . . Power . | . . . Propulsion . | . . . Utility . | . . . Weapon . | . . . Parts Attached 29 | 5 20 4 Power 3 | 1 2 . Engine 3 | 1 2 . Core . | . . . Reactor . | . . . Propulsion 8 | 1 5 2 Treads 7 | 1 4 2 Leg . | . . . Wheel 1 | . 1 . Hover . | . . . Flight . | . . . Utility 5 | 1 4 . Device . | . . . Storage 4 | 1 3 . Processor 1 | . 1 . Hackware . | . . . Protection . | . . . Artifact . | . . . Weapon 13 | 2 9 2 Energy Gun 1 | . 1 . Energy Cannon 1 | . . 1 Ballistic Gun 7 | 2 4 1 Ballistic Cannon . | . . . Launcher 4 | . 4 . Special Weapon . | . . . Impact Weapon . | . . . Slashing Weapon . | . . . Piercing Weapon . | . . . Special Melee Weapon . | . . . Unidentified Prototypes . | . . . Parts Lost 4 | . 2 2 Power 1 | . 1 . Propulsion 1 | . . 1 Utility . | . . . Weapon 2 | . 1 1 Highest Loss Streak 2 | . 1 2 To Critical Strikes . | . . . Average Slot Usage (%) 95 | . 95 100 Engine 13 | . 13 14 Treads 24 | . 24 17 Wheel 3 | . 2 11 Storage 18 | . 19 14 Processor 5 | . 5 14 Energy Gun 2 | . 1 13 Ballistic Gun 22 | . 23 12 Launcher 3 | . 3 . Naked Turns . | . . . Heaviest Build 90 | 11 90 90 Greatest Support 40 | 20 40 10 Greatest Overweight (x) 8 | 3 8 8 Average Overweight (x) 1 | . 1 8 Largest Inventory Capacity 25 | 8 25 25 Average Capacity 15 | 7 14 25 Most Carried 18 | 4 17 18 Average Carried 11 | 3 11 17 Final Capacity 25 | 8 25 25 Final Carried 17 | 4 17 16 Class Distribution -------------------- 100% | Mutant Dominant Class ---------------- Mutant | -10/Materials Mutant | -10/Mines Resources | -11 -10 -10 ----------- Run | Scr Mat Min Matter Collected 762 | 173 575 14 Remotely . | . . . Salvage Created 1007 | . 868 139 Parts 62 | . 53 9 Haulers Intercepted 2 | . 2 . Recyclers Shooed 2 | . 2 . Parts Field Recycled . | . . . Retrieved Matter . | . . . Parts Self-Destructed . | . . . Prevented . | . . . Kills | -11 -10 -10 ------- Run | Scr Mat Min Combat Hostiles Destroyed 18 | . 17 1 Guns 14 | . 13 1 AOE 4 | . 4 . Classes Destroyed 8 | . 7 1 Worker 7 | . 2 5 Hauler 2 | . 2 . Recycler 1 | . 1 . Operator 1 | . 1 . Watcher 3 | . 3 . Swarmer 3 | . 3 . Grunt 14 | . 14 . Demolisher 1 | . . 1 Best Kill Streak 7 | . 7 2 Combat Bots Only 5 | . 5 1 Max Kills in Single Turn 4 | . 4 1 Gunslinging . | . . . Exploded 2 | . 2 . Melee . | . . . Uniques/NPCs Destroyed . | . . . Combat | -11 -10 -10 -------- Run | Scr Mat Min Damage Taken 1228 | . 597 631 Core 251 | . 79 172 Absorbed by Shields . | . . . Regen/Repaired (Parts) 184 | . 184 . Core Remaining (%) 100 | 100 . . Volleys Fired 84 | . 69 15 Largest 2 | . 2 2 Hottest 112 | . 40 112 Shots Fired 152 | . 129 23 Gun 136 | . 121 15 Cannon 8 | . . 8 Launcher 8 | . 8 . Special . | . . . Kinetic 123 | . 121 2 Thermal 13 | . . 13 Explosive 8 | . 8 . Electromagnetic 8 | . . 8 Robot Hit Streak 14 | . 11 14 Robot Miss Streak 7 | . 7 1 Penetration Max . | . . . Secondary Targets 2 | . 2 . Max Gunslinging Chain 1 | . 1 . Shots Hit Robots 95 | . 79 16 Core Hits 56 | . 47 9 Critical Kills 1 | . 1 . Critical Parts Destroyed 1 | . 1 . Critical Strikes 3 | . 2 1 Destroy 2 | . 2 . Corrupt 1 | . . 1 Melee Attacks . | . . . Impact . | . . . Slashing . | . . . Piercing . | . . . Sneak Attacks . | . . . Combat Hostiles . | . . . Follow-up Attacks . | . . . Damage Inflicted 1601 | . 1332 269 Guns 989 | . 816 173 Cannons 96 | . . 96 Explosions 491 | . 491 . Melee . | . . . Ramming 25 | . 25 . Kinetic 830 | . 816 14 Thermal 159 | . . 159 Explosive 491 | . 491 . Electromagnetic 96 | . . 96 Impact . | . . . Slashing . | . . . Piercing . | . . . Highest Corruption . | . . . Average Corruption . | . . . Corruption Purged . | . . . Corruption Blocked . | . . . Overload Shots . | . . . Overflow Damage 8 | . 8 . Projectiles . | . . . Explosions 8 | . 8 . Melee . | . . . Knockbacks . | . . . Impact . | . . . Kinetic . | . . . Secondary . | . . . Self-Inflicted Damage 48 | . 48 . Shots 2 | . 2 . Rammed 10 | . 10 . Targets Rammed 10 | . 10 . Kicked . | . . . Crushed . | . . . Highest Temperature 286 | . 12 286 Average Temperature 60 | . 6 117 Received Heat Transfer 297 | . 297 . Siege Activations . | . . . Robots Corrupted . | . . . Combat Hostiles . | . . . Parts Fried . | . . . Impact Corruptions . | . . . Robots Melted . | . . . Combat Hostiles . | . . . Parts Melted . | . . . Heat Transferred 407 | . . 407 Parts Sabotaged . | . . . Parts Stolen . | . . . Parts Stripped . | . . . Power Chain Reactions . | . . . Missiles Intercepted . | . . . Alert | -11 -10 -10 ------- Run | Scr Mat Min Peak Influence 407 | . 407 94 Initial 64 | . . 64 Average 176 | . 191 76 Maximum Alert Level 2 | . 2 . Low Security (%) 61 | 100 56 100 Level 1 37 | . 42 . Level 2 . | . 1 . Level 3 . | . . . Level 4 . | . . . Level 5 . | . . . High Security . | . . . Max Security . | . . . Squads Dispatched 4 | . 4 . Investigation 3 | . 3 . Extermination . | . . . Reinforcement 1 | . 1 . Assault . | . . . Garrison . | . . . Intercept . | . . . Searches Triggered . | . . . Construction Impeded . | . . . Haulers Reinforced . | . . . Active Scanning Responses . | . . . Cargo Convoy Interrupts . | . . . Stealth | -11 -10 -10 --------- Run | Scr Mat Min Distress Signals 2 | . 2 . Communications Jammed . | . . . Distress Signals . | . . . Times Spotted 32 | . 30 2 Peak Tracking Total 5 | . 5 2 Tactical Retreats . | . . . Traps | -11 -10 -10 ------- Run | Scr Mat Min Traps Triggered . | . . . Indirectly . | . . . Trap Hack Attempts . | . . . Triggered . | . . . Disarmed . | . . . Reprogrammed . | . . . Reused . | . . . Traps Extracted . | . . . Installed . | . . . Triggered . | . . . Machines | -11 -10 -10 ---------- Run | Scr Mat Min Machines Disabled 4 | . 4 . Max in Single Turn 1 | . 1 . Machines Sabotaged . | . . . Garrisons Compromised . | . . . Overloaded Fab Kills . | . . . Hacking | -11 -10 -10 --------- Run | Scr Mat Min Machines Accessed 9 | . 9 . Terminals 6 | . 6 . Fabricators . | . . . Repair Stations 1 | . 1 . Recycling Units 2 | . 2 . Scanalyzers . | . . . Garrison Access . | . . . Total Hacks 19 | . 19 . Successful 13 | . 13 . Failed 5 | . 5 . Catastrophic 1 | . 1 . Database Lockouts 1 | . 1 . Manual 11 | . 11 . Terminals 13 | . 13 . Fabricators . | . . . Repair Stations 4 | . 4 . Recycling Units 2 | . 2 . Scanalyzers . | . . . Garrison Access . | . . . Terminal Hacks 7 | . 7 . Part Schematic 1 | . 1 . Prototype ID Bank 1 | . 1 . Alert Level 1 | . 1 . Unreport Threat 1 | . 1 . Locate Traps 3 | . 3 . Fabricator Hacks . | . . . Repair Station Hacks 4 | . 4 . Scan Component 2 | . 2 . Repair 2 | . 2 . Recycling Unit Hacks . | . . . Scanalyzer . | . . . Garrison Access Hacks . | . . . Unauthorized Hacks 2 | . 2 . Terminals . | . . . Fabricators . | . . . Repair Stations . | . . . Recycling Units 2 | . 2 . Tunnel 2 | . 2 . Scanalyzers . | . . . Garrison Access . | . . . Data Cores Recovered 1 | . 1 . Used 1 | . 1 . Hacking Detections 7 | . 7 . Full Trace Events 2 | . 2 . Feedback Events . | . . . Feedback Blocked . | . . . Robot Schematics Acquired . | . . . Robots Built . | . . . Authchips . | . . . Time . | . . . Total Robot Build Rating . | . . . Part Schematics Acquired 1 | . 1 . Parts Built . | . . . Authchips . | . . . Time . | . . . Total Part Build Rating . | . . . Parts Repaired 2 | . 2 . Time 26 | . 26 . Parts Recycled . | . . . Recycled Matter . | . . . Retrieved Matter . | . . . Retrieved Components . | . . . Parts Scanalyzed . | . . . Part Schematics Acquired . | . . . Parts Damaged . | . . . Bothacking | -11 -10 -10 ------------ Run | Scr Mat Min Used RIF Installer . | . . . Robots Hacked . | . . . Non-combat . | . . . Combat . | . . . Robot Hacks Applied . | . . . Relay Couplers Released . | . . . Fabnet Peak Effective % . | . . . Robots Rewired . | . . . Allies Hacked . | . . . Hacks Repelled . | . . . Allies | -11 -10 -10 -------- Run | Scr Mat Min Total Allies . | . . . Largest Group . | . . . Highest-Rated Group . | . . . Highest-Rated Ally . | . . . Total Orders . | . . . Ally Attacks . | . . . Total Damage . | . . . Kills . | . . . Allies Corrupted . | . . . Allies Melted . | . . . Intel | -11 -10 -10 ------- Run | Scr Mat Min Robot Analysis Total . | . . . Derelict Logs Recovered . | . . . Drone Launches . | . . . Drone Recoveries . | . . . Exploration | -11 -10 -10 ------------- Run | Scr Mat Min Turns Passed 1839 | 65 1634 140 Spaces Moved 900 | 43 808 49 Core 24 | 24 . . Treads 707 | 19 688 . Legs . | . . . Wheels 169 | . 120 49 Hover . | . . . Flight . | . . . Fastest Speed 50 | 50 160 200 Average Speed 165 | 127 165 200 Slowest Speed 200 | 200 200 200 Overloaded Moves . | . . . Propulsion Burnouts . | . . . Robots Hopped . | . . . Cave-ins Triggered . | . . . Exploration Rate (%) 36 | 4 97 9 Regions Visited 2 Branch Regions 1 Pre-discovered Areas 2 | . 2 . Known Exits Taken . | . . . Unknown Exits Taken 2 | 1 1 . Scrap Searched . | . . . Spaces Dug 29 | . 29 . Terrain Destroyed 61 | . 61 . Melee . | . . . Projectile . | . . . AOE 61 | . 61 . Terrain Rammed . | . . . Walls Destroyed . | . . . Machines Disabled . | . . . Actions | -11 -10 -10 --------- Run | Scr Mat Min Total 1094 | 51 974 69 Wait 41 | . 41 . Move 898 | 42 807 49 Hop . | . . . Pick Up 24 | 4 19 1 Fast Attach 8 | 5 3 . Attach 5 | . 3 2 Detach . | . . . Swap 16 | . 14 2 Drop 8 | . 8 . Fire 84 | . 69 15 Melee . | . . . Ram . | . . . Kick . | . . . Crush 10 | . 10 . Escape Stasis . | . . . Rewire . | . . . Trap . | . . . Miscellaneous . | . . . Route ------- -11/Scrapyard -10/Materials (discovered 4 exits: [*Mat x3] / [*Min]) -10/Mines (discovered 1 exit: [*Mat]) History --------- Turn | Location | Event 28 | -11/Scrapyard | Discovered new exit (range 16) 66 | -11/Scrapyard | Entered Materials 119 | -10/Materials | Central database locked down 302 | -10/Materials | Build established: Mutant 308 | -10/Materials | Discovered new exit (range 15) 432 | -10/Materials | Discovered new exit (range 13) 599 | -10/Materials | Discovered new exit (range 16) 987 | -10/Materials | Discovered new exit (range 15) 1614 | -10/Materials | Repaired Lgt. Treads 1628 | -10/Materials | Repaired Lgt. Treads 1700 | -10/Materials | Entered Mines 1706 | -10/Mines | Met a Derelict bent on vengeance 1732 | -10/Mines | Discovered new exit (range 3) 1812 | -10/Mines | Assembled infested the area 1817 | -10/Mines | Assisted by a Guerilla fighting off Assembled 1822 | -10/Mines | Core integrity fell below 50% 1831 | -10/Mines | Core integrity fell below 20% 1840 | -10/Mines | Destroyed by D-53 Grenadier with Mini Grenade Launcher Last Messages --------------- 01817_ A derelict emerges from the shadows: "You need to get out of here! I've been tracking a group of Assembled to figure out where they're coming from, and they're closing on this area, come on!" 01818_ HV Slug penetrates Wall. 01825_ HV Slug penetrates D-53 Grenadier. 01825_ D-53 Grenadier suffers critical hit (Destroy). 01826_ DW-8AQ(h) destroyed. 01827_ U-05 Engineer builds a Wall. 01829_ The unstable cave ceiling collapses. 01830_ Lgt. Treads destroyed. 01832_ U-05 Engineer builds a Wall. 01832_ K-01 Serf collects debris. 01832_ D-53 Grenadier destroyed. 01834_ The unstable cave ceiling collapses. 01834_ Beam Rifle destroyed. 01837_ The unstable cave ceiling collapses. 01837_ K-01 Serf collects debris. 01837_ U-05 Engineer builds a Wall. 01839_ The unstable cave ceiling collapses. 01839_ K-01 Serf destroyed. Map ----- +----------------------------------------------------+ | | | | | | | | | | | | | | | | | | | | | | | | | | | | | | | | | ???????????????????????????????????????????? | | ???????????????????????????????????????????? | | ?######????????????#???????????????????????? | | ?# #??###????### ###????????????????????? | | ?# ##;# #?### ###??????????????????? | | ?# ### ## ##??????????????????? | | ?# % %= # ##?????????????????? | | ?# ####u% #?????????????????? | | ?# < ## #%= ##????????????????? | | ?## ####### @ #????????????????? | | ??#*%= ### ##????????????????? | | ??# #### ###d #?????????????????? | | ??# #??# %= %*# # ???????????????? | | ??# ##?# ### ## #?### #?????????????? | | ?## ### #?## #########???????????????????? | | ?# ##?## #??????????????????????????? | | ?# #??####??????????????????????????? | | ?# #????????????????????????????????? | | ?## #????????????????????????????????? | | ??### ##????????????????????????????????? | | ????######?????????????????????????????????? | | ???????????????????????????????????????????? | | ???????????????????????????????????????????? | | ???????????????????????????????????????????? | | ???????????????????????????????????????????? | | ???????????????????????????????????????????? | | ???????????????????????????????????????????? | | ???????????????????????????????????????????? | | ???????????????????????????????????????????? | | ???????????????????????????????????????????? | | ???????????????????????????????????????????? | | ???????????????????????????????????????????? | | ???????????????????????????????????????????? | | ???????????????????????????????????????????? | +----------------------------------------------------+ Best States ------------- Heat Dissipation 25 Energy Generation 10 Energy Capacity 250 Matter Stores 300 Matter Capacity 300 Sight Range 16 Terrain Scan Density 10 Evasion (%) 40 Targeting Accuracy 5 Recoil Reduction 2 Item Schematics ----------------- Huge Storage Unit | -10/Materials | Hacked Robot Schematics ------------------ None Fabricated ------------ Nothing Alien Tech Used ----------------- None Achievements -------------- None Challenges ------------ None Game ------ Seed ElectronMakeshiftCarapace Manual? 0 Play Time 00:13:18 Cumulative 308.6 hours Start 2022.05.30 @ 17:02:44 End 2022.05.30 @ 17:15:54 Sessions 1 Manual Loads 0 Difficulty Rogue Special Mode None Game No. 134 Rogue 134 Adventurer 0 Explorer 0 Win Type - Total 8 Types 5/0/1/1/0/0/0/1/0 Lore% 88 Gallery% 91 Achievement% 70 Wizard Run 0 Options --------- ASCII 1 Keyboard 1 Movement Vi Keybinds 0 Fullscreen 2 Font 18/Cog Map View 76x50 Tactical HUD 1 Map Filters NONE Filters NONE Steam 0 RUN: 27482197-89f7-4c50-b476-f74f655de180